bitfinex/quotes_ETHUSD_20251116
["timestamp","ask_amount","ask_price","bid_price","bid_amount"]
[1763276430372,0.4381,3205.6,3205.1,0.1908]
[1763276431283,0.4381,3205.6,3205.1,0.6709]
[1763276431476,2.19388744,3205.6,3205.1,0.6709]
[1763276431681,0.4649,3205.2,3205.0,0.005]
[1763276431966,0.7235788,3205.1,3205.0,0.005]
[1763276432180,1.61229417,3205.1,3205.0,0.005]
[1763276432791,2.10186794,3205.1,3205.0,0.005]
[1763276433386,1.67835257,3205.1,3205.0,0.005]
[1763276434715,3.21759737,3205.1,3205.0,0.005]
[1763276434879,1.75578744,3204.1,3204.0,0.00010728]
[1763276435087,2.05436624,3204.1,3204.0,0.00010728]
[1763276435414,2.25558744,3204.1,3204.0,0.00010728]
[1763276435619,1.75578744,3204.4,3204.0,0.45510728]
[1763276435765,0.28907424,3204.3,3204.0,0.00010728]
[1763276436394,1.75578744,3204.2,3204.0,0.00010728]
[1763276436595,1.75578744,3204.4,3204.2,0.455]
[1763276436793,0.28900143,3204.3,3204.2,0.455]
[1763276437014,0.28900143,3204.3,3204.0,0.49770728]
[1763276437216,1.3278408,3204.6,3204.0,0.49770728]
[1763276437217,0.28900143,3204.5,3204.2,0.455]
[1763276437513,0.2890058,3204.5,3204.0,0.00010728]
[1763276437717,0.4911,3204.5,3204.0,0.00010728]
[1763276439241,0.16248408,3204.4,3204.0,0.00010728]
[1763276439585,0.65358408,3204.4,3204.0,0.00010728]
[1763276439947,0.386,3204.1,3204.0,0.00010728]
[1763276441120,0.16248408,3204.4,3204.0,0.45510728]
[1763276441288,0.386,3204.1,3204.0,0.00010728]
[1763276441685,1.6248408,3204.6,3204.0,0.45510728]
[1763276441880,0.4911,3204.5,3204.0,0.00010728]
[1763276442721,0.386,3204.1,3204.0,0.00010728]
[1763276445130,0.876,3204.1,3204.0,0.00010728]
[1763276446819,0.386,3204.1,3204.0,0.00010728]
[1763276447332,0.876,3204.1,3204.0,0.00010728]
[1763276448436,0.386,3204.1,3204.0,0.00010728]
[1763276448734,0.876,3204.1,3204.0,0.00010728]
[1763276448935,1.1337408,3204.6,3204.0,0.45510728]
[1763276449241,0.35952585,3204.5,3204.0,0.45510728]
[1763276449439,0.4911,3204.6,3204.0,0.95270728]
[1763276449639,0.386,3204.1,3204.0,0.00010728]
[1763276449815,0.49,3204.4,3204.0,0.45510728]
[1763276450021,0.4911,3204.6,3204.0,0.45510728]
[1763276450941,0.386,3204.1,3204.0,0.00010728]
[1763276451531,2.05601371,3204.7,3204.0,0.95270728]
[1763276451734,0.28861772,3204.6,3204.2,0.455]
[1763276452216,0.386,3204.3,3204.0,0.00010728]
[1763276452542,0.4911,3204.6,3204.0,0.00010728]
[1763276452722,0.4911,3204.6,3204.2,0.455]
[1763276453120,0.4911,3204.8,3204.2,0.455]
[1763276453440,0.28882246,3204.7,3204.2,0.455]
[1763276453834,0.28882246,3204.7,3204.2,0.9526]
[1763276454034,0.77992246,3204.7,3204.2,0.9526]
[1763276454230,0.4911,3204.7,3204.2,0.455]
[1763276454433,0.28891792,3204.6,3204.2,0.455]
[1763276454739,0.386,3204.3,3204.0,0.00010728]
[1763276455044,0.3822,3204.1,3204.0,0.00010728]
[1763276455849,0.4911,3204.5,3204.0,0.00010728]
[1763276456146,0.78693701,3204.5,3204.0,0.00010728]
[1763276456447,0.4911,3204.4,3204.0,0.00010728]
[1763276457249,0.48985158,3204.4,3204.0,0.00010728]
[1763276458248,15.6912195,3211.7,3204.3,2.89328606]
[1763276458249,0.002,3205.0,3204.3,2.89328606]
[1763276458547,0.002,3205.0,3204.5,0.455]
[1763276458756,0.1941,3204.9,3204.5,0.455]
[1763276459363,0.4911,3204.8,3204.3,0.1335]
[1763276459657,2.13808077,3204.8,3204.0,0.00010728]
[1763276459868,0.1941,3204.9,3204.1,0.6311]
[1763276460067,0.28938612,3204.9,3204.1,0.6311]
[1763276460241,0.002,3205.0,3204.8,0.455]
[1763276460436,0.29138612,3205.0,3204.9,0.455]
[1763276460639,0.002,3205.0,3204.9,0.9526]
[1763276461330,0.002,3205.0,3204.9,0.455]
[1763276461851,0.002,3205.0,3204.9,0.9526]
[1763276462169,0.002,3205.0,3204.9,7.42554002]
[1763276463669,0.002,3206.1,3205.0,1.1337408]
[1763276463832,0.002,3206.1,3206.0,0.455]
[1763276464560,0.002,3206.1,3206.0,0.9533]
[1763276465064,0.002,3206.1,3206.0,0.455]
[1763276465370,0.002,3206.1,3205.7,0.4983]
[1763276465664,0.002,3206.1,3206.0,0.4527]
[1763276467687,0.002,3206.1,3206.0,0.951]
[1763276468760,0.002,3206.1,3206.0,11.33512741]
[1763276469178,0.002,3206.5,3206.1,0.999004]
[1763276469358,0.002,3206.5,3206.4,3.88767582]
[1763276469537,0.002,3206.5,3206.4,4.88811748]
[1763276470186,0.002,3206.5,3206.4,2.58688246]
[1763276470337,0.002,3206.5,3206.4,2.0847408]
[1763276471134,0.002,3206.5,3206.4,1.5864408]
[1763276471346,0.4399,3206.5,3206.1,0.1408]
[1763276471671,0.4399,3206.5,3206.1,0.6391]
[1763276471877,0.002,3206.5,3206.4,0.4527]
[1763276472278,0.4399,3206.5,3206.1,0.1408]
[1763276472478,0.4399,3206.5,3206.1,0.31808408]
[1763276472801,0.4399,3206.5,3206.1,0.17728408]
[1763276473002,0.4709,3206.2,3205.6,0.001]
[1763276473666,0.4709,3206.2,3205.6,0.4518]
[1763276475098,0.002,3206.5,3205.6,3.57127863]
[1763276475301,0.002,3206.5,3206.4,0.4881]
[1763276475498,0.002,3206.5,3206.4,2.10382842]
[1763276475818,0.002,3206.5,3206.4,2.51314714]
[1763276476165,0.002,3206.5,3206.4,2.63808642]
[1763276476373,0.002,3206.5,3206.4,5.75684889]
[1763276477537,0.002,3206.5,3206.4,1.37940634]
[1763276477877,0.002,3206.5,3206.4,0.4881]
[1763276478486,0.002,3206.5,3206.4,2.0726408]
[1763276480304,0.002,3206.5,3206.4,7.49263829]
[1763276480674,0.002,3206.5,3206.4,5.19140327]
[1763276481533,0.002,3206.5,3206.4,2.0726408]
[1763276481729,0.002,3206.5,3206.4,2.2923999]
[1763276481933,0.002,3206.5,3206.4,4.59363492]
[1763276482139,0.002,3206.5,3206.4,7.71239739]
[1763276483214,0.002,3206.5,3206.4,11.66733472]
[1763276484332,0.002,3206.5,3206.4,12.07283872]
[1763276485527,0.002,3206.5,3206.4,8.54857225]
[1763276485731,0.002,3206.5,3206.4,11.66733472]
[1763276486532,0.002,3206.5,3206.4,12.07283872]
[1763276487735,0.002,3206.5,3206.4,11.66733472]
[1763276488117,0.002,3206.5,3206.4,8.54857225]
[1763276488304,0.002,3206.5,3206.4,8.09777225]
[1763276488508,0.002,3206.5,3206.4,5.6715999]
[1763276489114,0.002,3206.5,3206.4,7.97283492]
[1763276489437,0.002,3206.5,3206.4,11.54239739]
[1763276489745,0.002,3206.5,3206.4,8.42363492]
[1763276491350,0.002,3206.5,3206.4,11.54239739]
[1763276493145,0.002,3206.5,3206.4,8.42363492]
[1763276495849,0.002,3206.5,3206.4,7.97283492]
[1763276496228,0.4264,3206.5,3206.4,5.1834999]
[1763276496632,0.002,3206.5,3206.4,5.1834999]
[1763276496954,0.002,3206.5,3206.4,5.6526999]
[1763276497154,0.002,3206.5,3206.4,5.1834999]
[1763276497556,0.9165,3206.5,3206.2,0.12494943]
[1763276497851,0.0049,3206.3,3206.1,0.001]
[1763276498052,0.4208,3206.2,3206.1,0.001]
[1763276498416,0.9116,3206.2,3206.1,0.001]
[1763276499265,0.4208,3206.2,3206.1,0.001]
[1763276501424,0.9116,3206.2,3206.1,0.001]
[1763276503338,0.4208,3206.2,3206.1,0.001]
[1763276507375,0.002,3206.5,3206.1,0.6125]
[1763276507590,0.002,3206.5,3206.4,0.4692]
[1763276507879,0.002,3206.5,3206.1,1.1347408]
[1763276508248,0.002,3206.5,3206.1,1.7622408]
[1763276509845,0.002,3206.5,3206.1,1.1347408]
[1763276510052,0.002,3206.5,3206.1,1.94312936]
[1763276510672,0.002,3206.5,3206.1,2.57062936]
[1763276512091,0.002,3206.5,3206.1,2.08542936]
[1763276512293,0.002,3206.5,3206.1,0.001]
[1763276512796,0.4821,3206.2,3206.1,0.001]
[1763276513176,0.915,3206.2,3206.1,0.001]
[1763276513566,0.002,3206.5,3206.1,0.001]
[1763276513899,0.4908,3206.4,3206.1,0.001]
[1763276514364,0.4908,3206.4,3205.8,3.11769582]
[1763276514565,0.4908,3206.4,3205.8,3.79002819]
[1763276515292,0.4908,3206.4,3205.8,0.67233237]
[1763276515596,0.4908,3206.4,3205.7,3.60464265]
[1763276515994,0.4908,3206.4,3205.7,1.1337408]
[1763276516162,0.4908,3206.4,3205.6,1.1347408]
[1763276516564,0.4908,3206.4,3205.6,4.25427329]
[1763276516763,0.4908,3206.4,3205.6,1.1347408]
[1763276516995,0.4908,3206.4,3205.6,3.89193432]
[1763276517198,0.4908,3206.4,3205.6,7.01145338]
[1763276517562,0.4908,3206.4,3205.6,7.49665338]
[1763276517768,0.4908,3206.4,3205.7,0.4852]
[1763276519408,0.4928,3206.5,3205.6,4.37713432]
[1763276519600,0.4928,3206.5,3205.7,0.74977325]
[1763276520414,0.4256,3205.8,3205.7,0.74977325]
[1763276520614,0.4928,3206.5,3205.7,1.1337408]
[1763276520795,0.4928,3206.5,3205.7,2.0881408]
[1763276522213,0.002,3206.5,3205.9,3.18675335]
[1763276522582,0.002,3206.5,3206.0,0.4852]
[1763276523211,0.002,3206.5,3206.1,0.1423]
[1763276523413,0.002,3206.5,3206.4,0.4692]
[1763276524401,0.002,3206.5,3206.4,0.50038762]
[1763276525297,0.002,3206.5,3206.4,0.4692]
[1763276525630,0.4276,3206.5,3206.1,0.52372534]
[1763276525837,0.0296,3206.4,3206.1,0.38142534]
[1763276526131,0.002,3206.5,3206.2,0.24344379]
[1763276526609,0.4671,3206.5,3206.2,0.24344379]
[1763276526938,0.002,3206.5,3206.2,1.99768376]
[1763276529404,0.451,3206.3,3206.2,0.24344379]
[1763276529730,0.916,3206.3,3206.0,1.75523997]
[1763276530248,0.451,3206.3,3206.0,1.75523997]
[1763276530453,0.002,3206.5,3206.2,2.24133997]
[1763276530616,0.002,3206.5,3206.1,1.7674408]
[1763276530617,0.002,3206.5,3206.4,2.24133997]
[1763276531121,0.453,3206.5,3206.4,1.75423997]
[1763276531947,0.002,3206.5,3206.4,2.24133997]
[1763276533343,0.002,3206.5,3206.4,3.05684805]
[1763276534250,0.002,3206.5,3206.4,4.81108802]
[1763276534816,0.002,3206.5,3206.4,9.09927891]
[1763276535148,0.002,3206.5,3206.4,9.06809129]
[1763276537137,0.002,3206.5,3206.4,9.47359529]
[1763276542929,0.002,3206.5,3206.4,5.96511535]
[1763276543170,0.002,3206.5,3206.4,9.47359529]
[1763276544529,0.002,3206.5,3206.4,12.76359529]
[1763276544754,0.002,3206.5,3206.4,9.47359529]
[1763276545842,0.002,3206.5,3206.4,9.06809129]
[1763276548683,0.002,3206.5,3206.4,8.58559129]
[1763276549084,0.002,3206.5,3206.4,9.06809129]
[1763276554696,0.002,3206.5,3206.4,8.58559129]
[1763276554863,0.002,3206.5,3206.4,9.03919129]
[1763276556393,0.002,3206.8,3206.5,1.5392448]
[1763276556600,0.002,3206.8,3206.7,5.12222074]
[1763276556806,0.002,3206.8,3206.7,9.35772474]
[1763276557010,0.002,3207.2,3207.1,4.64222074]
[1763276557166,0.002,3207.2,3207.1,5.60700155]
[1763276557505,0.002,3207.2,3207.1,6.5507017]
[1763276557689,0.1885,3208.3,3207.2,1.5392448]
[1763276557868,0.4916,3208.1,3208.0,1.75423997]
[1763276558064,0.9355,3208.1,3208.0,1.75423997]
[1763276558305,0.4439,3208.1,3208.0,3.50847994]
[1763276558801,0.4439,3208.1,3208.0,1.75423997]
[1763276559409,0.9351,3208.1,3207.6,1.1337408]
[1763276559706,0.4912,3208.0,3207.9,1.75423997]
[1763276560207,0.4961,3208.0,3207.9,1.75423997]
[1763276568922,0.4961,3208.0,3207.5,1.1337408]
[1763276569134,0.0093,3207.6,3207.5,1.1337408]
[1763276569422,0.0093,3207.6,3207.4,1.75423997]
[1763276569606,0.9268,3207.5,3207.4,1.75423997]
[1763276569804,0.4916,3208.2,3207.5,1.1337408]
[1763276570023,0.4916,3208.2,3207.8,1.75423997]
[1763276570205,0.4916,3208.2,3207.6,1.75423997]
[1763276570411,0.4439,3207.7,3207.6,1.75423997]
[1763276571092,0.4439,3207.7,3207.6,3.50847994]
[1763276571936,0.4439,3207.7,3207.5,0.4916]
[1763276572107,0.4912,3207.7,3207.6,1.75423997]
[1763276572722,0.4948,3207.7,3207.6,1.75423997]
[1763276573117,0.4948,3207.7,3207.6,3.50847994]
[1763276573600,0.4948,3207.7,3207.5,0.4916]
[1763276573902,0.4948,3207.7,3207.6,3.50847994]
[1763276574829,0.4408,3207.9,3207.6,3.50847994]
[1763276575134,0.4942,3207.7,3207.6,3.50847994]
[1763276575933,0.9356,3207.7,3207.6,3.50847994]
[1763276576825,0.9356,3207.7,3207.6,1.75423997]
[1763276577029,0.9356,3207.7,3207.6,1.64310675]
[1763276577328,0.4942,3207.7,3207.6,1.64310675]
[1763276577496,0.4937,3207.7,3207.6,1.90299963]
[1763276577698,0.1885,3208.3,3207.7,1.1337408]
[1763276577897,0.4916,3208.2,3207.9,1.64310675]
[1763276578332,0.4439,3208.0,3207.9,1.64310675]
[1763276578495,0.4439,3208.0,3207.7,2.13470675]
[1763276578700,0.4916,3207.9,3207.7,2.13470675]
[1763276579009,0.4439,3207.8,3207.7,2.13470675]
[1763276579439,0.9351,3207.8,3207.7,2.13470675]
[1763276580457,0.9351,3207.8,3207.7,0.4916]
[1763276580604,2.86837574,3207.8,3206.8,0.001]
[1763276580809,0.4948,3207.2,3206.9,0.9351]
[1763276581043,0.002,3208.1,3207.6,0.48]
[1763276581364,0.002,3208.1,3208.0,1.64310675]
[1763276581557,0.4948,3207.7,3207.5,1.64310675]
[1763276581862,0.4948,3207.7,3207.6,1.64310675]
[1763276582054,0.4408,3208.0,3207.6,2.13790675]
[1763276582208,0.4936,3208.1,3207.6,2.13790675]
[1763276582411,0.4439,3207.7,3207.5,0.16431068]
[1763276582739,0.0044,3207.6,3207.5,0.16431068]
[1763276583045,0.0044,3207.6,3207.3,1.64310675]
[1763276583232,0.4395,3207.5,3207.3,1.64310675]
[1763276583419,0.0088,3207.4,3207.3,1.64310675]
[1763276583845,0.0088,3207.4,3207.3,2.13470675]
[1763276584047,0.5004,3207.4,3207.3,2.13470675]
[1763276584236,0.5004,3207.4,3207.3,2.34827743]
[1763276584740,0.4773,3207.8,3207.3,2.34827743]
[1763276584941,0.4773,3207.8,3207.5,1.64310675]
[1763276585337,0.4581,3207.6,3207.5,1.64310675]
[1763276585847,0.9352,3207.6,3207.5,2.12040675]
[1763276586021,0.9352,3207.6,3207.5,0.4773]
[1763276586955,0.9352,3207.6,3207.1,0.001]
[1763276587163,0.0048,3207.2,3207.1,1.1347408]
[1763276587742,0.4821,3207.2,3207.1,0.001]
[1763276590555,0.4773,3207.7,3207.1,0.4804]
[1763276590747,0.4773,3207.9,3207.7,1.64310675]
[1763276591134,0.4581,3207.8,3207.5,1.64310675]
[1763276591525,0.0046,3207.6,3207.5,1.64310675]
[1763276592557,0.4819,3207.6,3207.5,1.64310675]
[1763276592954,0.4773,3208.0,3207.5,2.12250675]
[1763276593131,0.4773,3208.0,3207.7,1.64310675]
[1763276593537,0.4581,3207.8,3207.7,1.64310675]
[1763276595166,0.9352,3207.8,3207.7,1.64310675]
[1763276596342,2.57830675,3207.8,3207.4,0.4773]
[1763276596534,0.0048,3207.5,3207.1,0.001]
[1763276596735,0.4453,3207.2,3207.1,0.001]
[1763276597131,0.9308,3207.2,3207.1,0.001]
[1763276597333,0.9308,3207.2,3207.1,1.64410675]
[1763276597334,0.4453,3207.2,3207.1,1.64410675]
[1763276597835,0.4855,3207.7,3207.1,2.29301743]
[1763276598034,0.4855,3207.7,3207.3,1.64310675]
[1763276598469,0.4855,3207.7,3207.5,0.001]
[1763276598952,0.45,3207.6,3207.5,0.001]
[1763276599472,0.9351,3207.6,3207.5,0.001]
[1763276611041,0.45,3207.6,3207.5,0.001]
[1763276611480,0.002,3207.8,3207.5,0.4855]
[1763276611779,0.002,3207.8,3207.7,0.4845]
[1763276612275,0.002,3207.8,3207.6,0.21286068]
[1763276612783,0.002,3207.8,3207.7,2.12760675]
[1763276615854,0.452,3207.8,3207.6,0.21286068]
[1763276616484,0.002,3207.8,3207.6,0.21286068]
[1763276616647,0.002,3207.8,3207.7,0.64039674]
[1763276617988,0.4603,3207.8,3207.7,0.18569674]
[1763276618785,0.9128,3207.8,3207.5,0.001]
[1763276618990,0.454,3207.6,3207.5,0.001]
[1763276619488,0.9065,3207.6,3207.5,0.001]
[1763276626294,1.19723827,3207.6,3207.5,0.001]
[1763276635717,0.454,3207.6,3207.5,0.001]
[1763276636502,0.4545,3207.8,3207.5,0.4557]
[1763276636726,0.29077655,3207.7,3207.5,0.4557]
[1763276637611,0.29080133,3207.7,3207.5,0.4557]
[1763276638324,0.29080133,3207.7,3207.5,0.001]
[1763276638528,0.74330133,3207.7,3207.5,0.001]
[1763276638724,0.4583,3207.6,3207.5,0.001]
[1763276638933,0.9108,3207.6,3207.5,0.001]
[1763276639827,0.74913657,3207.6,3207.5,0.001]
[1763276640026,0.9108,3207.6,3207.5,0.001]
[1763276641900,1.20147544,3207.6,3207.5,0.001]
[1763276642326,0.9108,3207.6,3207.5,0.001]
[1763276643202,1.20148932,3207.6,3207.5,0.001]
[1763276644038,1.69064431,3207.6,3207.5,0.001]
[1763276644532,1.20148932,3207.6,3207.5,0.001]
[1763276646863,4.70774658,3207.6,3207.5,0.001]
[1763276647178,5.17872124,3207.6,3207.5,0.001]
[1763276650649,3.42559261,3207.6,3207.5,0.001]
[1763276652144,5.17872124,3207.6,3207.5,0.001]
[1763276653859,0.29068932,3207.6,3207.5,0.4689]
[1763276654049,0.29068932,3207.6,3207.5,0.9598]
[1763276654275,0.002,3207.7,3207.5,2.71292863]
[1763276654476,0.002,3207.7,3207.6,2.71192863]
[1763276655715,0.002,3207.7,3207.6,3.84566943]
[1763276655917,0.002,3207.7,3207.6,5.02919296]
[1763276656421,0.002,3207.7,3207.6,8.14678867]
[1763276657310,0.002,3207.7,3207.6,5.02919296]
[1763276657472,0.002,3207.7,3207.6,3.84566943]
[1763276657680,0.002,3207.7,3207.6,6.96326514]
[1763276660281,0.002,3207.7,3207.6,10.79326514]
[1763276660678,0.002,3207.7,3207.6,7.36876914]
[1763276661079,0.002,3207.7,3207.6,3.97055371]
[1763276661280,0.002,3207.7,3207.6,4.80113766]
[1763276661476,0.002,3207.7,3207.6,7.91873337]
[1763276661714,0.002,3207.8,3207.7,1.5392448]
[1763276661914,0.002,3207.8,3207.7,4.25117343]
[1763276662918,0.002,3207.8,3207.7,6.23493114]
[1763276663136,0.002,3207.8,3207.7,4.31362986]
[1763276665894,0.002,3207.8,3207.7,7.43112837]
[1763276667186,0.002,3207.8,3207.7,4.31362986]
[1763276668086,0.002,3207.8,3207.7,2.71192863]
[1763276670911,0.002,3207.8,3207.7,5.82942714]
[1763276671313,0.002,3208.1,3208.0,0.405504]
[1763276671521,0.002,3208.2,3208.0,5.51340206]
[1763276671721,0.002,3208.2,3208.1,2.70991589]
[1763276671927,0.002,3208.2,3208.1,7.78499403]
[1763276672104,0.002,3208.5,3208.3,5.04550206]
[1763276672306,0.002,3208.5,3208.3,5.54457121]
[1763276672618,0.002,3208.5,3208.3,6.00430206]
[1763276672929,0.002,3208.5,3208.3,6.12915048]
[1763276673128,0.002,3208.5,3208.3,7.26764334]
[1763276673517,0.002,3208.5,3208.3,10.38455884]
[1763276674736,0.002,3208.5,3208.3,7.26764334]
[1763276675424,0.002,3208.5,3208.3,10.38455884]
[1763276677697,0.002,3208.5,3208.3,9.42575884]
[1763276677895,2.74351826,3208.3,3207.6,0.001]
[1763276678096,2.39512863,3207.7,3207.6,0.001]
[1763276678336,0.99488694,3207.7,3207.6,0.001]
[1763276678646,1.1321,3207.7,3207.6,0.001]
[1763276678942,2.04559607,3207.7,3207.6,0.001]
[1763276679436,3.17933687,3207.7,3207.6,0.001]
[1763276680147,2.2658408,3207.7,3207.6,0.001]
[1763276681032,1.1321,3207.7,3207.6,0.001]
[1763276681330,1.1321,3207.7,3207.1,0.001]
[1763276681331,0.4518,3207.4,3207.1,0.001]
[1763276681532,2.06685463,3207.2,3207.1,0.001]
[1763276681832,2.06685463,3207.2,3206.5,0.001]
[1763276681833,1.5811408,3207.1,3206.5,0.001]
[1763276682019,2.05175463,3206.7,3206.5,0.001]
[1763276682222,4.13689543,3206.7,3206.5,0.001]
[1763276682420,0.4567,3206.4,3204.6,2.17675443]
[1763276682626,2.06115463,3206.1,3204.4,0.4993]
[1763276682814,2.78626914,3206.1,3204.4,1.6330408]
[1763276683013,3.92000994,3206.1,3204.4,1.6330408]
[1763276683845,3.92000994,3206.1,3204.4,3.62000812]
[1763276684162,1.86825531,3206.1,3204.4,1.1337408]
[1763276684443,3.92000994,3206.1,3204.5,0.4993]
[1763276684621,3.92000994,3206.1,3204.5,3.61990862]
[1763276685120,3.92000994,3206.1,3204.5,3.12060862]
[1763276685325,3.92000994,3206.1,3204.8,0.4993]
[1763276686402,3.92000994,3206.1,3204.6,0.4993]
[1763276687242,1.86825531,3206.1,3205.1,0.1213]
[1763276687539,1.6332408,3206.1,3204.4,1.57045189]
[1763276687738,1.6332408,3206.1,3204.4,2.45725863]
[1763276688037,1.6332408,3206.1,3204.6,1.1337408]
[1763276688249,1.6332408,3206.1,3204.5,1.6330408]
[1763276688437,1.6332408,3206.1,3204.5,0.4993]
[1763276688746,1.6332408,3206.1,3204.5,3.61988863]
[1763276689965,1.6332408,3206.1,3204.7,0.4993]
[1763276690957,1.6332408,3206.1,3204.5,3.12057632]
[1763276691158,1.6332408,3206.1,3204.4,3.12067174]
[1763276691357,1.6332408,3206.1,3204.5,1.6330408]
[1763276691561,1.6332408,3206.1,3204.7,0.4993]
[1763276693264,1.6332408,3206.1,3204.4,4.25440692]
[1763276693563,1.6332408,3206.1,3204.4,3.83]
[1763276693564,2.0387448,3206.1,3204.4,3.83]
[1763276693730,3.68499543,3206.1,3204.8,0.4993]
[1763276693930,3.68499543,3206.1,3205.1,0.1213]
[1763276694149,3.68499543,3206.1,3204.9,0.4993]
[1763276696443,3.68499543,3206.1,3205.1,0.6206]
[1763276696644,3.68499543,3206.1,3205.3,0.4993]
[1763276697156,3.68374779,3206.1,3205.3,0.4993]
[1763276698931,1.63199316,3206.1,3205.3,0.4993]
[1763276699134,1.14189316,3206.1,3205.6,0.4993]
[1763276699337,1.1337408,3206.1,3206.0,0.483]
[1763276699666,1.5928408,3206.1,3206.0,0.001]
[1763276700751,2.0826408,3206.1,3206.0,0.001]
[1763276701345,1.5928408,3206.1,3206.0,0.001]
[1763276701549,4.54424192,3206.1,3206.0,0.001]
[1763276701737,4.05444192,3206.1,3206.0,0.001]
[1763276701942,0.4898,3206.4,3206.0,0.001]
[1763276701943,2.30231704,3206.6,3206.0,0.9823]
[1763276702156,2.30231704,3206.6,3206.3,0.482]
[1763276702438,0.4591,3206.1,3206.0,0.001]
[1763276702870,0.9489,3206.1,3206.0,0.001]
[1763276703589,0.4901,3206.4,3206.0,0.001]
[1763276703790,1.1337408,3206.4,3206.0,0.001]
[1763276703996,0.002,3206.7,3206.1,0.6816]
[1763276704292,0.002,3206.7,3206.6,0.482]
[1763276705171,0.002,3206.7,3206.6,0.945]
[1763276705565,0.002,3206.7,3206.4,0.463]
[1763276705796,0.002,3206.7,3206.6,0.4763]
[1763276706282,0.002,3206.7,3206.6,0.9393]
[1763276710093,0.002,3206.7,3206.2,0.405504]
[1763276710300,0.002,3206.7,3206.3,0.4417804]
[1763276710471,0.002,3206.7,3206.6,0.4763]
[1763276711281,0.002,3206.7,3206.6,0.9393]
[1763276713083,0.002,3206.7,3206.6,0.4763]
[1763276718486,0.002,3206.7,3206.6,0.9548]
[1763276719212,0.002,3206.7,3206.6,0.4763]
[1763276719804,0.002,3206.7,3206.6,0.9548]
[1763276727348,0.002,3206.7,3206.6,7.25695378]
[1763276727504,0.002,3206.7,3206.6,8.68063422]
[1763276730613,0.002,3206.7,3206.6,12.51063422]
[1763276734627,0.002,3206.7,3206.6,12.03213422]
[1763276734840,0.002,3206.7,3206.6,12.52033422]
[1763276736354,0.002,3206.7,3206.6,9.40176627]
[1763276736739,0.002,3206.7,3206.6,12.52033422]
[1763276740066,0.002,3206.7,3206.6,9.40176627]
[1763276740359,0.002,3206.7,3206.6,12.52033422]
[1763276740563,0.002,3206.7,3206.6,11.38659342]
[1763276741460,0.002,3206.7,3206.6,6.13548444]
[1763276741756,0.002,3206.7,3206.6,4.3063]
[1763276743121,0.4703,3206.7,3206.6,3.83]
[1763276743338,0.9331,3206.7,3206.6,3.83]
[1763276743725,0.4703,3206.7,3206.6,3.83]
[1763276745278,0.4703,3206.7,3206.3,3.83]
[1763276745780,0.4703,3206.7,3206.3,4.3182]
[1763276747482,0.002,3206.7,3206.4,0.4882]
[1763276747654,0.002,3206.7,3206.3,4.79692932]
[1763276747854,0.002,3206.7,3206.3,5.28512932]
[1763276750178,0.4648,3206.7,3206.3,4.79692932]
[1763276750875,0.4648,3206.7,3206.3,3.83]
[1763276751079,0.4648,3206.7,3206.4,3.83]
[1763276751581,0.4683,3206.5,3206.4,3.83]
[1763276753306,0.9311,3206.5,3206.4,3.83]
[1763276755183,0.4683,3206.5,3206.4,3.83]
[1763276755503,0.4648,3206.7,3206.4,3.83]
[1763276755681,0.002,3206.7,3206.4,4.29]
[1763276755994,0.002,3206.7,3206.6,0.46]
[1763276756607,0.002,3206.7,3206.6,1.5904541]
[1763276756966,0.4703,3206.7,3206.4,3.83]
[1763276757166,0.0221,3206.6,3206.4,3.83]
[1763276757398,0.002,3206.7,3206.4,3.83]
[1763276758198,0.002,3206.7,3206.6,0.46]
[1763276758702,0.002,3206.7,3206.6,0.9482]
[1763276759796,0.002,3206.7,3206.6,0.46]
[1763276760838,0.002,3206.7,3206.6,0.97938567]
[1763276761035,0.002,3206.7,3206.6,3.69033076]
[1763276761190,0.002,3206.7,3206.6,6.80889871]
[1763276761395,0.002,3206.7,3206.6,3.65914509]
[1763276761793,0.002,3206.7,3206.6,1.90543567]
[1763276762049,0.002,3206.7,3206.6,1.41723567]
[1763276762648,0.002,3206.7,3206.6,6.77771304]
[1763276762848,0.002,3206.7,3206.6,10.60771304]
[1763276763153,0.002,3206.7,3206.6,12.76692646]
[1763276763304,0.002,3206.7,3206.6,13.90066726]
[1763276770624,0.002,3206.7,3206.6,14.02557767]
[1763276772342,0.002,3206.7,3206.6,12.25256825]
[1763276772533,0.49,3206.7,3206.6,9.65951304]
[1763276772848,0.002,3206.7,3206.6,10.55971704]
[1763276773041,0.002,3206.7,3206.6,11.69345784]
[1763276773250,0.002,3206.7,3206.6,12.16235784]
[1763276773816,0.002,3206.7,3206.6,11.69345784]
[1763276774755,0.4583,3206.7,3206.6,6.32648047]
[1763276775319,0.4583,3206.7,3206.6,5.3692448]
[1763276775613,0.4583,3206.7,3206.6,8.48781275]
[1763276776056,0.002,3206.7,3206.6,12.98583159]
[1763276776255,0.002,3206.7,3206.6,12.49273159]
[1763276776553,0.002,3206.7,3206.6,14.54697123]
[1763276776753,0.002,3206.7,3206.6,12.79326181]
[1763276776916,0.002,3206.7,3206.6,14.54697123]
[1763276778432,0.002,3206.7,3206.6,14.05387123]
[1763276778637,0.002,3206.7,3206.6,12.30016181]
[1763276779338,0.446,3206.7,3206.6,11.39715781]
[1763276779721,0.446,3206.7,3206.6,11.80266181]
[1763276779954,0.002,3206.7,3206.6,12.30016181]
[1763276780654,0.002,3206.7,3206.6,12.79326181]
[1763276781254,0.002,3206.7,3206.6,12.30016181]
[1763276781753,0.002,3206.7,3206.6,12.79326181]